[Event "34rd NATO Championship 2024"]
[Site "Rhodes"]
[Date "2024.10.24"]
[Round "5.4"]
[White "Papasimakopoulos, Alexandros"]
[Black "Jeselson, Andrew"]
[Result "1-0"]
[ECO "A10"]
[WhiteElo "2372"]
[BlackElo "1858"]
[Annotator "RC"]
[PlyCount "77"]
[EventDate "2024.09.18"]
[EventType "swiss"]
[EventCountry "GRE"]
[SourceTitle "playchess.com"]
[Source "ChessBase"]
[SourceQuality "1"]
[TimeControl "5400+30"]

1. Nf3 {[%emt 0:01:28]} f5 {[%emt 0:00:03]} 2. c4 {[%emt 0:03:28]} Nf6 {[%emt 0:01:28]} 3. Nc3 {[%emt 0:00:12]} g6 {[%emt 0:00:40]} 4. b4 {[%emt 0:00:55]} Bg7 {[%emt 0:04:06]} 5. Bb2 {[%emt 0:00:07]} O-O {[%emt 0:03:28]} 6. Qb3 {[%emt 0:00:16]} d6 {[%emt 0:03:13]} 7. d4 {[%emt 0:01:30]} e6 {[%emt 0:06:03]} 8. e3 {[%emt 0:00:34]} Qe7 {[%emt 0:01:57]} 9. a4 {[%emt 0:02:30]} Nc6 {[%emt 0:05:16]} 10. a5 {[%emt 0:03:43]} Nd8 {[%emt 0:01:42]} 11. c5 {[%emt 0:02:37]} Nf7 {[%emt 0:02:26]} 12. cxd6 {[%emt 0:01:53]} cxd6 {[%emt 0:00:13]} 13. b5 {[%emt 0:00:13]} Ne4 {[%emt 0:17:12]} 14. Nxe4 {[%emt 0:06:45]} fxe4 {[%emt 0:00:06]} 15. Nd2 {[%emt 0:00:03]} d5 {[%emt 0:07:50]} 16. Be2 {[%emt 0:00:49]} Qg5 {[%emt 0:07:47]} 17. O-O {[%emt 0:03:16]} e5 {[%emt 0:00:34]} 18. Qxd5 {[%emt 0:01:25]} Bh3 {[%emt 0:00:54]} 19. Qxe4 {[%emt 0:01:04]} exd4 {[%emt 0:06:00]} 20. f4 {[%emt 0:02:09]} Qc5 {[%emt 0:03:27]} 21. Bxd4 {[%emt 0:01:32]} Bxd4 {[%emt 0:00:19]} 22. Qxd4 {[%emt 0:00:10]} Qxd4 {[%emt 0:00:43]} 23. exd4 {[%emt 0:00:07]} Be6 {[%emt 0:02:18]} 24. Bf3 {[%emt 0:03:48]} Rad8 {[%emt 0:00:23]} 25. Rfe1 {[%emt 0:00:26]} Bd5 {[%emt 0:00:10]} 26. Re7 {[%emt 0:04:30]} Bxf3 {[%emt 0:00:51]} 27. Nxf3 {[%emt 0:00:02]} Nd6 {[%emt 0:00:11]} 28. a6 {[%emt 0:03:14]} bxa6 {[%emt 0:09:23]} 29. bxa6 {[%emt 0:00:14]} Rf7 {[%emt 0:00:20]} 30. Rxf7 {[%emt 0:06:30]} Kxf7 {[%emt 0:00:07]} 31. Rc1 {[%emt 0:07:09]} Ne8 {[%emt 0:05:36]} 32. Rb1 {[%emt 0:04:32]} Nd6 {[%emt 0:00:14]} 33. d5 {[%emt 0:00:53]} Kf6 {[%emt 0:00:46]} 34. Re1 {[%emt 0:07:43]} Nf7 {[%emt 0:05:13]} 35. Re6+ {[%emt 0:02:19]} Kf5 {[%emt 0:00:32]} 36. Nd4+ {[%emt 0:00:58]} Kg4 {[%emt 0:00:23]} 37. h3+ {[%emt 0:00:22]} Kh5 {[%emt 0:00:08]} 38. Re7 {[%emt 0:00:37]} Nh6 {[%emt 0:01:24]} 39. Re5+ {[%emt 0:01:45]} 1-0

[Event "34rd NATO Championship 2024"]
[Site "Rhodes"]
[Date "2024.10.24"]
[Round "5.5"]
[White "Nielsen, Jan Mose"]
[Black "Aizpurua, Patrick Emilio"]
[Result "0-1"]
[ECO "D24"]
[WhiteElo "2036"]
[BlackElo "2322"]
[Annotator "RC"]
[PlyCount "34"]
[EventDate "2024.09.18"]
[EventType "swiss"]
[EventCountry "GRE"]
[SourceTitle "playchess.com"]
[Source "ChessBase"]
[SourceQuality "1"]
[TimeControl "5400+30"]

1. d4 {[%emt 0:00:03]} Nf6 {[%emt 0:00:05]} 2. c4 {[%emt 0:00:04]} e6 {[%emt 0:00:04]} 3. Nc3 {[%emt 0:00:15]} d5 {[%emt 0:00:25]} 4. Nf3 {[%emt 0:01:20]} dxc4 {[%emt 0:00:07]} 5. e4 {[%emt 0:05:53]} b5 {[%emt 0:02:36]} 6. Nxb5 {[%emt 0:07:51]} Nxe4 {[%emt 0:00:20]} 7. Nc3 {[%emt 0:03:49]} Nd6 {[%emt 0:05:55]} 8. Bf4 {[%emt 0:07:25]} Ba6 {[%emt 0:07:38]} 9. d5 {[%emt 0:12:28]} Be7 {[%emt 0:07:46]} 10. dxe6 {[%emt 0:03:15]} O-O {[%emt 0:00:46]} 11. exf7+ {[%emt 0:06:54]} Rxf7 {[%emt 0:00:09]} 12. Be2 {[%emt 0:00:57]} Nd7 {[%emt 0:10:43]} 13. Be3 {[%emt 0:03:18]} Nf5 {[%emt 0:02:33]} 14. Qd5 {[%emt 0:06:07]} Nxe3 {[%emt 0:04:26]} 15. fxe3 {[%emt 0:01:52]} Nb6 {[%emt 0:00:07]} 16. Qe4 {[%emt 0:01:24]} Qe8 {[%emt 0:01:25]} 17. Ne5 {[%emt 0:08:09]} Bf6 {[%emt 0:00:26]} 0-1

[Event "34rd NATO Championship 2024"]
[Site "Rhodes"]
[Date "2024.10.24"]
[Round "5.6"]
[White "Pavlidis, Anastasios"]
[Black "Hadzicki, Tomasz"]
[Result "1-0"]
[ECO "C42"]
[WhiteElo "2279"]
[BlackElo "2034"]
[Annotator "RC"]
[PlyCount "65"]
[EventDate "2024.09.18"]
[EventType "swiss"]
[EventCountry "GRE"]
[SourceTitle "playchess.com"]
[Source "ChessBase"]
[SourceQuality "1"]
[TimeControl "5400+30"]

1. e4 {[%emt 0:00:05]} e5 {[%emt 0:00:07]} 2. Nf3 {[%emt 0:00:11]} Nf6 {[%emt 0:00:12]} 3. Nxe5 {[%emt 0:03:04]} Qe7 {[%emt 0:00:23]} 4. Nf3 {[%emt 0:03:49]} Nxe4 {[%emt 0:00:29]} 5. Be2 {[%emt 0:00:25]} Qd8 {[%emt 0:03:46]} 6. O-O {[%emt 0:01:23]} Be7 {[%emt 0:00:14]} 7. d4 {[%emt 0:06:30]} d5 {[%emt 0:00:15]} 8. c4 {[%emt 1:19:03]} dxc4 {[%emt 0:07:18]} 9. Bxc4 {[%emt 0:00:00]} O-O {[%emt 0:00:11]} 10. Nc3 {[%emt 0:00:00]} Nd6 {[%emt 0:03:51]} 11. Bb3 {[%emt 0:00:00]} Bg4 {[%emt 0:03:40]} 12. h3 {[%emt 0:00:00]} Bh5 {[%emt 0:00:41]} 13. g4 {[%emt 0:00:00]} Bg6 {[%emt 0:00:05]} 14. Ne5 {[%emt 0:00:00]} Be4 {[%emt 0:16:41]} 15. Nxe4 {[%emt 0:00:00]} Nxe4 {[%emt 0:00:13]} 16. Nxf7 {[%emt 0:00:00]} Rxf7 {[%emt 0:00:16]} 17. Bxf7+ {[%emt 0:00:00]} Kxf7 {[%emt 0:00:16]} 18. Qb3+ {[%emt 0:00:00]} Ke8 {[%emt 0:08:52]} 19. Qxb7 {[%emt 0:00:00]} c6 {[%emt 0:01:08]} 20. Qxa8 {[%emt 0:00:00]} Qc7 {[%emt 0:00:14]} 21. Re1 {[%emt 0:00:00]} Nxf2 {[%emt 0:02:11]} 22. Kxf2 {[%emt 0:00:00]} Qh2+ {[%emt 0:00:27]} 23. Kf3 {[%emt 0:00:00]} Qxh3+ {[%emt 0:01:27]} 24. Ke2 {[%emt 0:00:00]} Qxg4+ {[%emt 0:03:44]} 25. Kd3 {[%emt 0:00:00]} Qf5+ {[%emt 0:00:18]} 26. Kc3 {[%emt 0:00:00]} Qa5+ {[%emt 0:00:45]} 27. Kc2 {[%emt 0:00:00]} Qf5+ {[%emt 0:01:00]} 28. Kd1 {[%emt 0:00:00]} Qf3+ {[%emt 0:06:52]} 29. Re2 {[%emt 0:00:00]} Qf1+ {[%emt 0:00:10]} 30. Kd2 {[%emt 0:00:00]} Qf4+ {[%emt 0:01:55]} 31. Kc3 {[%emt 0:00:00]} Qc7 {[%emt 0:00:09]} 32. Re5 {[%emt 0:00:00]} Qb6 {[%emt 0:01:38]} 33. Bg5 {[%emt 0:00:00]} 1-0

[Event "34rd NATO Championship 2024"]
[Site "Rhodes"]
[Date "2024.10.24"]
[Round "5.7"]
[White "Andersen, Hans-Christoph"]
[Black "Loving, Jason"]
[Result "1-0"]
[ECO "A52"]
[WhiteElo "2229"]
[BlackElo "2021"]
[Annotator "RC"]
[PlyCount "81"]
[EventDate "2024.09.18"]
[EventType "swiss"]
[EventCountry "GRE"]
[SourceTitle "playchess.com"]
[Source "ChessBase"]
[SourceQuality "1"]
[TimeControl "5400+30"]

1. d4 {[%emt 0:01:04]} Nf6 {[%emt 0:00:11]} 2. c4 {[%emt 0:00:36]} e5 {[%emt 0:00:12]} 3. dxe5 {[%emt 0:00:55]} Ng4 {[%emt 0:00:08]} 4. Bf4 {[%emt 0:01:25]} Nc6 {[%emt 0:00:35]} 5. Nf3 {[%emt 0:00:27]} Bb4+ {[%emt 0:00:09]} 6. Nbd2 {[%emt 0:00:21]} Qe7 {[%emt 0:00:37]} 7. e3 {[%emt 0:00:33]} Ngxe5 {[%emt 0:00:51]} 8. Nxe5 {[%emt 0:00:11]} Nxe5 {[%emt 0:00:23]} 9. Be2 {[%emt 0:00:09]} d6 {[%emt 0:04:50]} 10. O-O {[%emt 0:00:35]} O-O {[%emt 0:01:24]} 11. Nb3 {[%emt 0:00:59]} Ng6 {[%emt 0:05:44]} 12. Bg3 {[%emt 0:01:24]} Be6 {[%emt 0:01:22]} 13. Qc2 {[%emt 0:09:01]} a5 {[%emt 0:10:00]} 14. a3 {[%emt 0:10:28]} Bc5 {[%emt 0:01:48]} 15. Nxc5 {[%emt 0:00:32]} dxc5 {[%emt 0:00:07]} 16. Bf3 {[%emt 0:01:24]} Rab8 {[%emt 0:05:32]} 17. Rfd1 {[%emt 0:20:12]} f5 {[%emt 0:05:22]} 18. Rd2 {[%emt 0:13:09]} Kh8 {[%emt 0:11:34]} 19. Qa4 {[%emt 0:06:31]} f4 {[%emt 0:03:14]} 20. exf4 {[%emt 0:05:02]} Nxf4 {[%emt 0:02:06]} 21. Re1 {[%emt 0:10:39]} Qg5 {[%emt 0:10:09]} 22. Qxa5 {[%emt 0:02:11]} Bxc4 {[%emt 0:02:11]} 23. h4 {[%emt 0:06:39]} Qh6 {[%emt 0:07:29]} 24. Rd7 {[%emt 0:00:06]} Ne6 {[%emt 0:02:58]} 25. Qc3 {[%emt 0:00:29]} Ba2 {[%emt 0:01:13]} 26. Bg4 {[%emt 0:03:35]} Nd4 {[%emt 0:08:40]} 27. Qxc5 {[%emt 0:00:23]} Nc6 {[%emt 0:01:15]} 28. Rxc7 {[%emt 0:01:41]} Qd2 {[%emt 0:00:48]} 29. Re2 {[%emt 0:01:05]} Qd1+ {[%emt 0:01:00]} 30. Kh2 {[%emt 0:00:01]} Be6 {[%emt 0:00:04]} 31. Rxe6 {[%emt 0:01:08]} Qxg4 {[%emt 0:00:05]} 32. Rd6 {[%emt 0:00:57]} Rf5 {[%emt 0:02:23]} 33. Qc3 {[%emt 0:00:05]} Rg8 {[%emt 0:01:20]} 34. Rxb7 {[%emt 0:00:21]} Ne5 {[%emt 0:00:19]} 35. Qd4 {[%emt 0:01:53]} Qe2 {[%emt 0:00:57]} 36. Bxe5 {[%emt 0:00:08]} Rxe5 {[%emt 0:00:05]} 37. Rd8 {[%emt 0:00:35]} h5 {[%emt 0:02:56]} 38. Rxg8+ {[%emt 0:00:08]} Kxg8 {[%emt 0:00:05]} 39. f4 {[%emt 0:00:19]} Re7 {[%emt 0:00:49]} 40. Qd8+ {[%emt 0:00:55]} Re8 {[%emt 0:00:06]} 41. Qg5 {[%emt 0:01:15]} 1-0

[Event "34rd NATO Championship 2024"]
[Site "Rhodes"]
[Date "2024.10.24"]
[Round "5.8"]
[White "Pietruszewski, Marcin"]
[Black "Pazeriene, Diana"]
[Result "1-0"]
[ECO "B12"]
[WhiteElo "2174"]
[BlackElo "1993"]
[Annotator "RC"]
[PlyCount "45"]
[EventDate "2024.09.18"]
[EventType "swiss"]
[EventCountry "GRE"]
[SourceTitle "playchess.com"]
[Source "ChessBase"]
[SourceQuality "1"]
[TimeControl "5400+30"]

1. e4 {[%emt 0:00:02]} c6 {[%emt 0:00:05]} 2. d4 {[%emt 0:00:05]} d5 {[%emt 0:00:07]} 3. e5 {[%emt 0:00:03]} Bf5 {[%emt 0:00:11]} 4. Nf3 {[%emt 0:00:05]} e6 {[%emt 0:00:26]} 5. Be2 {[%emt 0:00:07]} Nd7 {[%emt 0:00:57]} 6. O-O {[%emt 0:00:13]} c5 {[%emt 0:01:41]} 7. Be3 {[%emt 0:02:14]} Ne7 {[%emt 0:02:35]} 8. c4 {[%emt 0:14:56]} Be4 {[%emt 0:06:29]} 9. Nc3 {[%emt 0:08:27]} cxd4 {[%emt 0:07:49]} 10. Nxd4 {[%emt 0:08:13]} Nxe5 {[%emt 0:03:55]} 11. cxd5 {[%emt 0:01:55]} Bxd5 {[%emt 0:00:42]} 12. Nxd5 {[%emt 0:01:39]} Nxd5 {[%emt 0:00:39]} 13. Bb5+ {[%emt 0:17:22]} Nd7 {[%emt 0:00:57]} 14. Qg4 {[%emt 0:04:09]} a6 {[%emt 0:05:11]} 15. Nxe6 {[%emt 0:03:19]} Nxe3 {[%emt 0:23:39]} 16. fxe3 {[%emt 0:01:21]} Qe7 {[%emt 0:00:43]} 17. Nc7+ {[%emt 0:02:55]} Kd8 {[%emt 0:00:05]} 18. Nxa8 {[%emt 0:10:40]} axb5 {[%emt 0:00:18]} 19. Rad1 {[%emt 0:00:15]} h5 {[%emt 0:02:45]} 20. Qg3 {[%emt 0:06:29]} Qe6 {[%emt 0:04:52]} 21. Qc7+ {[%emt 0:00:49]} Ke8 {[%emt 0:00:06]} 22. Qc8+ {[%emt 0:00:55]} Ke7 {[%emt 0:00:07]} 23. Nc7 {[%emt 0:01:32]} 1-0

[Event "34rd NATO Championship 2024"]
[Site "Rhodes"]
[Date "2024.10.24"]
[Round "5.9"]
[White "Pavlidou, Ekaterini"]
[Black "Kedzierski, Slawomir"]
[Result "1-0"]
[ECO "E26"]
[WhiteElo "2153"]
[BlackElo "2013"]
[Annotator "RC"]
[PlyCount "51"]
[EventDate "2024.09.18"]
[EventType "swiss"]
[EventCountry "GRE"]
[SourceTitle "playchess.com"]
[Source "ChessBase"]
[SourceQuality "1"]
[TimeControl "5400+30"]

1. d4 {[%emt 0:00:10]} Nf6 {[%emt 0:00:41]} 2. c4 {[%emt 0:00:09]} e6 {[%emt 0:00:23]} 3. Nc3 {[%emt 0:00:45]} Bb4 {[%emt 0:00:49]} 4. a3 {[%emt 0:02:24]} Bxc3+ {[%emt 0:00:46]} 5. bxc3 {[%emt 0:00:08]} c5 {[%emt 0:02:13]} 6. e3 {[%emt 0:00:50]} Nc6 {[%emt 0:01:21]} 7. Bd3 {[%emt 0:01:44]} d6 {[%emt 0:08:26]} 8. f3 {[%emt 0:01:51]} e5 {[%emt 0:02:12]} 9. Ne2 {[%emt 0:00:46]} b6 {[%emt 0:01:49]} 10. O-O {[%emt 0:02:07]} O-O {[%emt 0:03:07]} 11. e4 {[%emt 0:10:43]} h6 {[%emt 0:00:55]} 12. d5 {[%emt 0:02:07]} Na5 {[%emt 0:00:24]} 13. Ng3 {[%emt 0:02:22]} Ba6 {[%emt 0:02:04]} 14. Nf5 {[%emt 0:02:03]} Kh7 {[%emt 0:09:36]} 15. g4 {[%emt 0:08:51]} Bxc4 {[%emt 0:12:10]} 16. Bxc4 {[%emt 0:00:29]} Nxc4 {[%emt 0:00:08]} 17. Qa4 {[%emt 0:05:26]} Na5 {[%emt 0:00:47]} 18. c4 {[%emt 0:01:17]} Ng8 {[%emt 0:04:16]} 19. Ra2 {[%emt 0:03:28]} Ne7 {[%emt 0:01:38]} 20. Rg2 {[%emt 0:04:50]} Ng6 {[%emt 0:16:28]} 21. g5 {[%emt 0:14:48]} hxg5 {[%emt 0:07:25]} 22. Bxg5 {[%emt 0:00:20]} f6 {[%emt 0:00:50]} 23. Bd2 {[%emt 0:02:34]} Nb7 {[%emt 0:00:57]} 24. f4 {[%emt 0:02:12]} Rf7 {[%emt 0:10:07]} 25. Qd1 {[%emt 0:01:49]} Nxf4 {[%emt 0:04:45]} 26. Rxf4 {[%emt 0:01:34]} 1-0

[Event "34rd NATO Championship 2024"]
[Site "Rhodes"]
[Date "2024.10.24"]
[Round "5.10"]
[White "Skwarczynski, Marcin"]
[Black "Circenis, Kaspars"]
[Result "0-1"]
[ECO "C26"]
[WhiteElo "1940"]
[BlackElo "2120"]
[Annotator "RC"]
[PlyCount "60"]
[EventDate "2024.09.18"]
[EventType "swiss"]
[EventCountry "GRE"]
[SourceTitle "playchess.com"]
[Source "ChessBase"]
[SourceQuality "1"]
[TimeControl "5400+30"]

1. e4 {[%emt 0:00:02]} e5 {[%emt 0:00:02]} 2. Nc3 {[%emt 0:00:09]} Nf6 {[%emt 0:00:10]} 3. d4 {[%emt 0:00:04]} Bb4 {[%emt 0:02:46]} 4. Bg5 {[%emt 0:07:21]} Qe7 {[%emt 0:11:20]} 5. f3 {[%emt 0:00:12]} d5 {[%emt 0:01:35]} 6. Qd2 {[%emt 0:37:28]} exd4 {[%emt 0:04:22]} 7. Qxd4 {[%emt 0:02:31]} c5 {[%emt 0:02:24]} 8. Bxf6 {[%emt 0:04:19]} cxd4 {[%emt 0:00:53]} 9. Bxe7 {[%emt 0:00:04]} Kxe7 {[%emt 0:00:35]} 10. a3 {[%emt 0:01:13]} dxc3 {[%emt 0:02:29]} 11. axb4 {[%emt 0:00:16]} cxb2 {[%emt 0:00:08]} 12. Rb1 {[%emt 0:00:27]} dxe4 {[%emt 0:00:10]} 13. fxe4 {[%emt 0:00:18]} a5 {[%emt 0:10:27]} 14. Nf3 {[%emt 0:17:32]} axb4 {[%emt 0:09:35]} 15. Bc4 {[%emt 0:09:18]} Be6 {[%emt 0:05:41]} 16. Bxe6 {[%emt 0:00:12]} Kxe6 {[%emt 0:00:07]} 17. O-O {[%emt 0:00:05]} f6 {[%emt 0:01:03]} 18. Rxb2 {[%emt 0:00:07]} Nc6 {[%emt 0:00:22]} 19. c3 {[%emt 0:00:46]} bxc3 {[%emt 0:03:09]} 20. Rxb7 {[%emt 0:08:41]} Rab8 {[%emt 0:03:49]} 21. Rxb8 {[%emt 0:09:55]} Rxb8 {[%emt 0:00:13]} 22. Rc1 {[%emt 0:00:00]} Rb3 {[%emt 0:00:15]} 23. Kf2 {[%emt 0:00:00]} Kd6 {[%emt 0:00:55]} 24. Ke3 {[%emt 0:00:15]} Kc5 {[%emt 0:00:27]} 25. Ne1 {[%emt 0:01:03]} Kc4 {[%emt 0:01:19]} 26. Nc2 {[%emt 0:00:36]} Rb2 {[%emt 0:01:54]} 27. Ne1 {[%emt 0:00:14]} Nb4 {[%emt 0:04:01]} 28. h4 {[%emt 0:00:39]} h5 {[%emt 0:00:23]} 29. Rd1 {[%emt 0:01:13]} Kb3 {[%emt 0:34:26]} 30. g4 {[%emt 0:00:30]} Nc2+ {[%emt 0:00:30]} 0-1

[Event "34rd NATO Championship 2024"]
[Site "Rhodes"]
[Date "2024.10.24"]
[Round "5.11"]
[White "Tommasini, Enzo"]
[Black "Tetepoulidis, Ioannis"]
[Result "1/2-1/2"]
[ECO "A05"]
[WhiteElo "2026"]
[BlackElo "2100"]
[Annotator "RC"]
[PlyCount "154"]
[EventDate "2024.09.18"]
[EventType "swiss"]
[EventCountry "GRE"]
[SourceTitle "playchess.com"]
[Source "ChessBase"]
[SourceQuality "1"]
[TimeControl "5400+30"]

1. Nf3 {[%emt 0:00:55]} Nf6 {[%emt 0:00:03]} 2. g3 {[%emt 0:00:13]} g6 {[%emt 0:00:03]} 3. b3 {[%emt 0:00:05]} Bg7 {[%emt 0:00:24]} 4. Bb2 {[%emt 0:00:09]} b5 {[%emt 0:00:07]} 5. Bg2 {[%emt 0:00:33]} Bb7 {[%emt 0:00:06]} 6. c4 {[%emt 0:01:42]} bxc4 {[%emt 0:01:44]} 7. bxc4 {[%emt 0:00:15]} O-O {[%emt 0:00:56]} 8. Qb3 {[%emt 0:01:26]} Qc8 {[%emt 0:00:32]} 9. Nc3 {[%emt 0:00:41]} d6 {[%emt 0:31:18]} 10. O-O {[%emt 1:29:31]} Nbd7 {[%emt 0:00:40]} 11. Rab1 {[%emt 0:00:00]} Nc5 {[%emt 0:12:35]} 12. Qc2 {[%emt 0:00:00]} Rb8 {[%emt 0:09:50]} 13. d4 {[%emt 0:00:00]} Nce4 {[%emt 0:01:47]} 14. Nh4 {[%emt 0:00:00]} Nxc3 {[%emt 0:00:39]} 15. Bxc3 {[%emt 0:00:00]} Bxg2 {[%emt 0:00:21]} 16. Nxg2 {[%emt 0:00:00]} Qa6 {[%emt 0:00:50]} 17. Bd2 {[%emt 0:00:00]} Nd7 {[%emt 0:15:42]} 18. Be3 {[%emt 0:00:00]} c6 {[%emt 0:04:52]} 19. Rb3 {[%emt 0:00:00]} Nb6 {[%emt 0:07:56]} 20. Rfb1 {[%emt 0:00:00]} Rbc8 {[%emt 0:00:31]} 21. Rb4 {[%emt 0:00:00]} c5 {[%emt 0:04:26]} 22. dxc5 {[%emt 0:00:00]} dxc5 {[%emt 0:00:01]} 23. Rb5 {[%emt 0:00:00]} Qa4 {[%emt 0:03:58]} 24. Qb3 {[%emt 0:00:00]} Qxb3 {[%emt 0:00:24]} 25. axb3 {[%emt 0:00:00]} Bd4 {[%emt 0:00:40]} 26. Ra5 {[%emt 0:00:00]} Rb8 {[%emt 0:01:14]} 27. Rc1 {[%emt 0:00:00]} Rb7 {[%emt 0:00:28]} 28. Bxd4 {[%emt 0:00:00]} cxd4 {[%emt 0:00:01]} 29. Rb5 {[%emt 0:00:00]} Rfb8 {[%emt 0:00:46]} 30. Nf4 {[%emt 0:00:00]} Nd7 {[%emt 0:01:07]} 31. Rxb7 {[%emt 0:00:00]} Rxb7 {[%emt 0:00:01]} 32. c5 {[%emt 0:00:00]} Rxb3 {[%emt 0:01:42]} 33. Nd5 {[%emt 0:00:00]} d3 {[%emt 0:00:31]} 34. exd3 Rxd3 35. Nxe7+ {[%emt 0:00:00]} Kf8 {[%emt 0:00:29]} 36. Nc8 {[%emt 0:00:00]} Nb8 {[%emt 0:01:46]} 37. Nxa7 {[%emt 0:13:30]} Rd7 {[%emt 0:00:00]} 38. Nb5 {[%emt 0:00:00]} Rb7 {[%emt 0:00:02]} 39. Nd6 {[%emt 0:00:00]} Rc7 {[%emt 0:00:30]} 40. Nb5 {[%emt 0:00:00]} Rb7 {[%emt 0:00:03]} 41. Nd4 {[%emt 0:00:00]} Rc7 42. c6 {[%emt 0:02:30]} Ke7 {[%emt 0:00:47]} 43. f4 {[%emt 0:00:00]} Kd8 {[%emt 0:01:23]} 44. Kf2 {[%emt 0:00:00]} Ra7 {[%emt 0:00:26]} 45. Nb5 {[%emt 0:00:00]} Ra2+ {[%emt 0:00:11]} 46. Kf3 {[%emt 0:00:00]} Nxc6 {[%emt 0:00:40]} 47. Rxc6 {[%emt 0:00:00]} Rxh2 {[%emt 0:00:02]} 48. Nd4 {[%emt 0:00:00]} Ke7 {[%emt 0:00:24]} 49. Rc7+ {[%emt 0:00:00]} Kf6 {[%emt 0:00:13]} 50. Ne2 {[%emt 0:00:00]} Kg7 {[%emt 0:02:19]} 51. Rb7 {[%emt 0:00:00]} h6 {[%emt 0:00:00]} 52. Nc3 {[%emt 0:00:00]} Rd2 {[%emt 0:00:00]} 53. Ne4 {[%emt 0:00:00]} Rd3+ {[%emt 0:00:00]} 54. Kf2 {[%emt 0:00:00]} Rd5 {[%emt 0:00:22]} 55. g4 {[%emt 0:00:00]} Kf8 {[%emt 0:01:02]} 56. Ke3 {[%emt 0:00:00]} Kg7 {[%emt 0:00:52]} 57. Re7 {[%emt 0:00:00]} Kf8 {[%emt 0:00:16]} 58. Re8+ {[%emt 0:00:00]} Kg7 {[%emt 0:00:04]} 59. Rg8+ {[%emt 0:00:00]} Kxg8 {[%emt 0:00:08]} 60. Nf6+ {[%emt 0:00:00]} Kg7 {[%emt 0:00:25]} 61. Nxd5 {[%emt 0:00:00]} h5 {[%emt 0:00:15]} 62. g5 {[%emt 0:00:00]} Kf8 {[%emt 0:00:03]} 63. f5 gxf5 {[%emt 0:00:22]} 64. Kf4 {[%emt 0:00:00]} h4 {[%emt 0:00:01]} 65. Ne3 {[%emt 0:00:00]} h3 {[%emt 0:01:34]} 66. Nf1 {[%emt 0:00:00]} Kg7 {[%emt 0:00:30]} 67. Kxf5 {[%emt 0:00:00]} Kf8 {[%emt 0:00:26]} 68. Kg4 {[%emt 0:00:00]} Kg7 {[%emt 0:00:04]} 69. Kf5 {[%emt 0:00:00]} Kf8 {[%emt 0:00:18]} 70. Kf6 {[%emt 0:00:00]} Kg8 {[%emt 0:00:10]} 71. Nh2 {[%emt 0:00:00]} Kf8 {[%emt 0:00:05]} 72. Ng4 {[%emt 0:00:00]} Ke8 {[%emt 0:00:34]} 73. Kg7 {[%emt 0:00:00]} Ke7 {[%emt 0:00:16]} 74. Kh6 {[%emt 0:00:00]} Ke6 {[%emt 0:00:50]} 75. Kh5 {[%emt 0:00:00]} Kf5 {[%emt 0:01:23]} 76. Kh4 {[%emt 0:00:00]} h2 {[%emt 0:00:50]} 77. Nxh2 {[%emt 0:00:00]} f6 {[%emt 0:00:02]} 1/2-1/2

[Event "34rd NATO Championship 2024"]
[Site "Rhodes"]
[Date "2024.10.24"]
[Round "5.12"]
[White "Peraino, Andrew"]
[Black "Tustanowski, Mateusz"]
[Result "0-1"]
[ECO "C84"]
[WhiteElo "1965"]
[BlackElo "2081"]
[Annotator "RC"]
[PlyCount "94"]
[EventDate "2024.09.18"]
[EventType "swiss"]
[EventCountry "GRE"]
[SourceTitle "playchess.com"]
[Source "ChessBase"]
[SourceQuality "1"]
[TimeControl "5400+30"]

1. e4 {[%emt 0:11:55]} e5 {[%emt 0:00:08]} 2. Nf3 {[%emt 0:00:06]} Nc6 {[%emt 0:00:11]} 3. Bb5 {[%emt 0:00:09]} a6 {[%emt 0:00:15]} 4. Ba4 {[%emt 0:00:09]} Nf6 {[%emt 0:00:21]} 5. d4 {[%emt 0:00:08]} exd4 {[%emt 0:01:48]} 6. O-O {[%emt 0:00:09]} Be7 {[%emt 0:03:12]} 7. Re1 {[%emt 0:01:09]} b5 {[%emt 0:05:02]} 8. Bb3 {[%emt 0:07:23]} d6 {[%emt 0:03:01]} 9. a4 {[%emt 0:03:16]} Bg4 {[%emt 0:25:26]} 10. axb5 {[%emt 0:17:15]} axb5 {[%emt 0:02:34]} 11. Rxa8 {[%emt 0:00:09]} Qxa8 {[%emt 0:00:09]} 12. Na3 {[%emt 0:00:06]} Qa5 {[%emt 0:20:53]} 13. Bd2 {[%emt 0:03:14]} Qb6 {[%emt 0:00:59]} 14. Qe2 {[%emt 0:09:34]} Ne5 {[%emt 0:01:13]} 15. Nxb5 {[%emt 0:00:08]} d3 {[%emt 0:04:00]} 16. Nxc7+ {[%emt 0:05:14]} Qxc7 {[%emt 0:01:49]} 17. cxd3 {[%emt 0:02:39]} O-O {[%emt 0:01:14]} 18. d4 {[%emt 0:01:36]} Nxf3+ {[%emt 0:06:58]} 19. gxf3 {[%emt 0:00:09]} Be6 {[%emt 0:00:29]} 20. d5 {[%emt 0:01:12]} Bd7 {[%emt 0:00:53]} 21. Bc3 {[%emt 0:00:12]} Re8 {[%emt 0:01:28]} 22. Kh1 {[%emt 0:01:33]} Nh5 {[%emt 0:05:32]} 23. f4 {[%emt 0:05:04]} Nxf4 {[%emt 0:00:24]} 24. Qd2 {[%emt 0:02:03]} Ng6 {[%emt 0:00:53]} 25. f4 {[%emt 0:01:00]} Bh4 {[%emt 0:02:02]} 26. Rc1 {[%emt 0:02:38]} Qb6 {[%emt 0:01:22]} 27. Bc2 {[%emt 0:00:48]} Qf2 {[%emt 0:00:59]} 28. Qxf2 {[%emt 0:04:54]} Bxf2 {[%emt 0:00:05]} 29. Bd2 {[%emt 0:00:21]} Rc8 {[%emt 0:00:55]} 30. Bd3 {[%emt 0:00:42]} Rxc1+ {[%emt 0:01:16]} 31. Bxc1 {[%emt 0:00:06]} Bh3 {[%emt 0:00:35]} 32. e5 {[%emt 0:01:07]} dxe5 {[%emt 0:03:26]} 33. f5 {[%emt 0:00:07]} Nh4 {[%emt 0:00:45]} 34. Be4 {[%emt 0:00:09]} Nxf5 {[%emt 0:00:19]} 35. b4 {[%emt 0:00:31]} Nd6 {[%emt 0:00:49]} 36. Bd3 {[%emt 0:00:26]} e4 {[%emt 0:00:23]} 37. Bc2 {[%emt 0:01:40]} e3 {[%emt 0:02:03]} 38. Bd3 {[%emt 0:00:53]} f5 {[%emt 0:01:31]} 39. Bb2 {[%emt 0:01:49]} f4 {[%emt 0:00:41]} 40. Be2 {[%emt 0:00:44]} Nf5 {[%emt 0:00:30]} 41. d6 {[%emt 0:04:11]} Nh4 {[%emt 0:00:47]} 42. Bc4+ {[%emt 0:00:09]} Kf8 {[%emt 0:00:18]} 43. Bd5 {[%emt 0:03:37]} f3 {[%emt 0:00:21]} 44. Bxf3 {[%emt 0:00:11]} Nxf3 {[%emt 0:00:08]} 45. Bxg7+ {[%emt 0:01:27]} Kxg7 {[%emt 0:00:25]} 46. d7 {[%emt 0:00:06]} e2 {[%emt 0:00:11]} 47. d8=N {[%emt 0:00:25]} e1=R# {[%emt 0:00:10]} 0-1